[Event "*** Titled Tuesday Blitz"]
[Site "Chess.com"]
[Date "2020.04.14"]
[Round "8"]
[White "malandragem"]
[Black "theblitzchamp"]
[Result "1-0"]
[WhiteElo "2525"]
[BlackElo "2655"]
[TimeControl "180+1"]
[EndTime "11:28:54 PDT"]
[Termination "malandragem won by resignation"]

1. e4 {[%clk 0:03:00.9]} 1... e5 {[%clk 0:03:00.2]} 2. Nf3 {[%clk 0:03:01]} 2...
Nc6 {[%clk 0:03:00.8]} 3. Nc3 {[%clk 0:03:00.7]} 3... Nf6 {[%clk 0:03:01]} 4. a3
{[%clk 0:03:01.2]} 4... d6 {[%clk 0:02:57]} 5. Bc4 {[%clk 0:02:55.7]} 5... Be7
{[%clk 0:02:56.5]} 6. O-O {[%clk 0:02:53.4]} 6... O-O {[%clk 0:02:57]} 7. d4
{[%clk 0:02:44.4]} 7... Bg4 {[%clk 0:02:51.3]} 8. dxe5 {[%clk 0:02:36.2]} 8...
dxe5 {[%clk 0:02:50.2]} 9. h3 {[%clk 0:02:26.3]} 9... Qxd1 {[%clk 0:02:47.6]}
10. Rxd1 {[%clk 0:02:27]} 10... Bxf3 {[%clk 0:02:48.2]} 11. gxf3 {[%clk
0:02:26.7]} 11... Nd4 {[%clk 0:02:48.8]} 12. f4 {[%clk 0:02:21.7]} 12... Nf3+
{[%clk 0:02:18.5]} 13. Kf1 {[%clk 0:02:15.2]} 13... Bd6 {[%clk 0:02:15.5]} 14.
Be2 {[%clk 0:02:13]} 14... Nd4 {[%clk 0:02:05.9]} 15. fxe5 {[%clk 0:01:58.9]}
15... Bxe5 {[%clk 0:02:05.6]} 16. f4 {[%clk 0:01:58.9]} 16... Nxe2 {[%clk
0:02:05.2]} 17. Nxe2 {[%clk 0:01:48.1]} 17... Bxf4 {[%clk 0:01:32.2]} 18. Bxf4
{[%clk 0:01:41.7]} 18... Nxe4 {[%clk 0:01:32.7]} 19. Ng3 {[%clk 0:01:38.2]}
19... Nf6 {[%clk 0:01:28.1]} 20. Be5 {[%clk 0:01:31.2]} 20... Rfe8 {[%clk
0:01:26.9]} 21. Bxf6 {[%clk 0:01:30.8]} 21... gxf6 {[%clk 0:01:27.8]} 22. Re1
{[%clk 0:01:30.3]} 22... Re6 {[%clk 0:01:26.8]} 23. Rxe6 {[%clk 0:01:27.4]}
23... fxe6 {[%clk 0:01:27.7]} 24. Rd1 {[%clk 0:01:27.8]} 24... Rf8 {[%clk
0:01:25.1]} 25. Rd7 {[%clk 0:01:27.9]} 25... Rf7 {[%clk 0:01:25.6]} 26. Rxf7
{[%clk 0:01:26.9]} 26... Kxf7 {[%clk 0:01:26.5]} 27. Ke2 {[%clk 0:01:27.5]}
27... f5 {[%clk 0:01:26.7]} 28. Ke3 {[%clk 0:01:20]} 28... Kf6 {[%clk
0:01:27.1]} 29. h4 {[%clk 0:01:16.2]} 29... e5 {[%clk 0:01:25.3]} 30. Ne2 {[%clk
0:01:12.6]} 30... c6 {[%clk 0:01:24.5]} 31. Nc3 {[%clk 0:01:10.4]} 31... Kg6
{[%clk 0:01:24.5]} 32. Kf3 {[%clk 0:01:04.1]} 32... Kh5 {[%clk 0:01:20.7]} 33.
Kg3 {[%clk 0:01:04.2]} 33... b6 {[%clk 0:01:21.1]} 34. b4 {[%clk 0:01:02.4]}
34... Kg6 {[%clk 0:01:16.3]} 35. a4 {[%clk 0:01:01.6]} 35... Kf6 {[%clk
0:01:14.7]} 36. b5 {[%clk 0:00:58.9]} 36... c5 {[%clk 0:01:12.7]} 37. Nd5+
{[%clk 0:00:56.2]} 37... Ke6 {[%clk 0:01:13.1]} 38. c4 {[%clk 0:00:56.7]} 38...
h5 {[%clk 0:01:06]} 39. Kf3 {[%clk 0:00:55]} 39... Kd6 {[%clk 0:01:05.1]} 40.
Nf6 {[%clk 0:00:52.6]} 40... Ke6 {[%clk 0:00:58.9]} 41. Nxh5 {[%clk 0:00:52.8]}
41... f4 {[%clk 0:00:59]} 42. Ke4 {[%clk 0:00:41.8]} 42... Kf7 {[%clk
0:00:58.5]} 43. Kxe5 {[%clk 0:00:38]} 43... f3 {[%clk 0:00:58.4]} 44. Ng3 {[%clk
0:00:38.3]} 44... f2 {[%clk 0:00:58.9]} 45. Kf4 {[%clk 0:00:35.6]} 45... Kg6
{[%clk 0:00:59.8]} 46. Kf3 {[%clk 0:00:35.7]} 46... Kf6 {[%clk 0:01:00.6]} 47.
Kxf2 {[%clk 0:00:35.6]} 47... Ke5 {[%clk 0:01:01.5]} 48. Ke3 {[%clk 0:00:35.9]}
48... Ke6 {[%clk 0:01:01.1]} 1-0

[Event "*** Titled Tuesday Blitz"]
[Site "Chess.com"]
[Date "2020.04.14"]
[Round "8"]
[White "Korchmar_Vasiliy"]
[Black "hakki1"]
[Result "1-0"]
[WhiteElo "2534"]
[BlackElo "2390"]
[TimeControl "180+1"]
[EndTime "11:28:55 PDT"]
[Termination "Korchmar_Vasiliy won by resignation"]

1. d4 {[%clk 0:03:00.9]} 1... g6 {[%clk 0:02:59.3]} 2. e4 {[%clk 0:03:00.3]}
2... Bg7 {[%clk 0:02:59.5]} 3. Nc3 {[%clk 0:03:00.3]} 3... d6 {[%clk 0:02:59.5]}
4. f4 {[%clk 0:03:00.4]} 4... Nc6 {[%clk 0:02:58.2]} 5. Be3 {[%clk 0:02:54.5]}
5... Nf6 {[%clk 0:02:57.1]} 6. Nf3 {[%clk 0:02:51.3]} 6... O-O {[%clk
0:02:56.4]} 7. Qd2 {[%clk 0:02:49.7]} 7... a6 {[%clk 0:02:55.3]} 8. O-O-O {[%clk
0:02:49.3]} 8... b5 {[%clk 0:02:54.6]} 9. Bd3 {[%clk 0:02:35.5]} 9... Na5 {[%clk
0:02:38]} 10. h3 {[%clk 0:02:21.3]} 10... b4 {[%clk 0:02:31.7]} 11. Ne2 {[%clk
0:01:53.8]} 11... Rb8 {[%clk 0:02:31.3]} 12. g4 {[%clk 0:01:46.9]} 12... c5
{[%clk 0:01:49.5]} 13. dxc5 {[%clk 0:01:42.4]} 13... Nxe4 {[%clk 0:01:24.4]} 14.
Bxe4 {[%clk 0:01:33.4]} 14... Nc4 {[%clk 0:01:24.2]} 15. Qd3 {[%clk 0:01:29.5]}
15... Nxb2 {[%clk 0:01:22.6]} 16. Qb3 {[%clk 0:01:25]} 16... a5 {[%clk
0:00:48.4]} 17. Rd4 {[%clk 0:01:11.3]} 17... a4 {[%clk 0:00:47.6]} 18. Qxb2
{[%clk 0:01:11.3]} 18... Bxd4 {[%clk 0:00:36.6]} 19. Nexd4 {[%clk 0:01:09.7]}
19... Bb7 {[%clk 0:00:34.2]} 20. c6 {[%clk 0:00:54.5]} 20... d5 {[%clk
0:00:34.1]} 21. Bd3 {[%clk 0:00:53]} 21... Ba8 {[%clk 0:00:33.5]} 22. h4 {[%clk
0:00:51.2]} 22... Qd6 {[%clk 0:00:33.4]} 23. h5 {[%clk 0:00:50.5]} 23... Bxc6
{[%clk 0:00:31.5]} 24. hxg6 {[%clk 0:00:49.7]} 24... fxg6 {[%clk 0:00:31.6]} 25.
Nxc6 {[%clk 0:00:47.6]} 25... Qxc6 {[%clk 0:00:25.5]} 26. Qe5 {[%clk 0:00:47.8]}
26... b3 {[%clk 0:00:21.1]} 27. Bd4 {[%clk 0:00:38.2]} 27... Rf6 {[%clk
0:00:20.7]} 28. Qxb8+ {[%clk 0:00:36.4]} 28... Kf7 {[%clk 0:00:17.8]} 29. Ng5+
{[%clk 0:00:32.4]} 1-0

[Event "*** Titled Tuesday Blitz"]
[Site "Chess.com"]
[Date "2020.04.14"]
[Round "8"]
[White "Nikolaj_6"]
[Black "GodDMuhammad"]
[Result "1-0"]
[WhiteElo "2572"]
[BlackElo "2234"]
[TimeControl "180+1"]
[EndTime "11:28:55 PDT"]
[Termination "Nikolaj_6 won by resignation"]

1. e4 {[%clk 0:03:00.9]} 1... e5 {[%clk 0:02:59.6]} 2. Nf3 {[%clk 0:03:00.9]}
2... f5 {[%clk 0:02:57.8]} 3. Nxe5 {[%clk 0:02:59.4]} 3... Qf6 {[%clk
0:02:56.5]} 4. Nc4 {[%clk 0:02:58.6]} 4... fxe4 {[%clk 0:02:49.7]} 5. Nc3 {[%clk
0:02:58.4]} 5... Qg6 {[%clk 0:02:47.3]} 6. d3 {[%clk 0:02:58.4]} 6... Bb4 {[%clk
0:02:41.7]} 7. Bd2 {[%clk 0:02:56.2]} 7... Bxc3 {[%clk 0:02:20.9]} 8. Bxc3
{[%clk 0:02:53.6]} 8... Nf6 {[%clk 0:02:20.4]} 9. Ne5 {[%clk 0:02:28.5]} 9...
Qf5 {[%clk 0:02:05.7]} 10. g4 {[%clk 0:02:05.7]} 10... Qe6 {[%clk 0:02:03.8]}
11. g5 {[%clk 0:01:45]} 11... d6 {[%clk 0:01:53.9]} 12. gxf6 {[%clk 0:01:41]}
12... dxe5 {[%clk 0:01:53.7]} 13. fxg7 {[%clk 0:01:37.3]} 13... Rg8 {[%clk
0:01:53.7]} 14. Qh5+ {[%clk 0:01:36.3]} 14... Kd8 {[%clk 0:01:45.8]} 15. Qxh7
{[%clk 0:01:30.3]} 15... Nc6 {[%clk 0:01:43.3]} 16. O-O-O {[%clk 0:01:09.7]}
16... e3 {[%clk 0:01:30.2]} 17. Bh3 {[%clk 0:01:06.9]} 17... Qf7 {[%clk
0:01:25]} 18. Bxc8 {[%clk 0:01:06]} 18... Kxc8 {[%clk 0:01:24.9]} 19. fxe3
{[%clk 0:00:59.6]} 19... Rxg7 {[%clk 0:01:23.4]} 20. Qh3+ {[%clk 0:00:57.7]}
20... Qd7 {[%clk 0:01:21.2]} 21. Qh8+ {[%clk 0:00:57.2]} 21... Nd8 {[%clk
0:01:21.4]} 22. Bxe5 {[%clk 0:00:56.8]} 22... Rh7 {[%clk 0:01:21.6]} 23. Qf6
{[%clk 0:00:56.2]} 23... b6 {[%clk 0:01:21.8]} 24. h4 {[%clk 0:00:55.8]} 24...
Kb7 {[%clk 0:01:22.2]} 25. Qf3+ {[%clk 0:00:55.7]} 25... Nc6 {[%clk 0:01:22.6]}
26. Bf4 {[%clk 0:00:55.1]} 26... Rf8 {[%clk 0:01:18.2]} 27. h5 {[%clk
0:00:55.1]} 27... a6 {[%clk 0:01:12.7]} 28. h6 {[%clk 0:00:55.4]} 28... Ka7
{[%clk 0:01:11.3]} 29. Kb1 {[%clk 0:00:55.5]} 29... Rf6 {[%clk 0:01:10]} 30. Qe4
{[%clk 0:00:54.7]} 30... Re6 {[%clk 0:01:07.9]} 31. Qf5 {[%clk 0:00:54.1]} 31...
Rf7 {[%clk 0:00:58.9]} 32. Qh3 {[%clk 0:00:50.2]} 32... Rh7 {[%clk 0:00:57.8]}
33. d4 {[%clk 0:00:50.4]} 33... Nb4 {[%clk 0:00:55.4]} 34. a3 {[%clk 0:00:49.7]}
34... Nd5 {[%clk 0:00:55.2]} 35. Bg5 {[%clk 0:00:49.6]} 35... Qd6 {[%clk
0:00:47.4]} 36. Qf5 {[%clk 0:00:46.2]} 36... Rg6 {[%clk 0:00:42.8]} 37. e4
{[%clk 0:00:45.4]} 37... Ne7 {[%clk 0:00:39]} 38. Bxe7 {[%clk 0:00:42.6]} 38...
Rxe7 {[%clk 0:00:38.8]} 39. h7 {[%clk 0:00:42.5]} 39... Rf6 {[%clk 0:00:34]} 40.
Qxf6 {[%clk 0:00:41.4]} 40... Qxf6 {[%clk 0:00:34.1]} 41. h8=Q {[%clk
0:00:41.5]} 1-0

[Event "*** Titled Tuesday Blitz"]
[Site "Chess.com"]
[Date "2020.04.14"]
[Round "8"]
[White "Philosopherrr"]
[Black "FILI86"]
[Result "1-0"]
[WhiteElo "2456"]
[BlackElo "2582"]
[TimeControl "180+1"]
[EndTime "11:28:56 PDT"]
[Termination "Philosopherrr won by resignation"]

1. e4 {[%clk 0:03:00.4]} 1... c5 {[%clk 0:03:00.9]} 2. Nf3 {[%clk 0:02:59.2]}
2... e6 {[%clk 0:03:01.1]} 3. d4 {[%clk 0:02:59.4]} 3... cxd4 {[%clk 0:03:02]}
4. Nxd4 {[%clk 0:03:00.3]} 4... a6 {[%clk 0:03:02.6]} 5. Nc3 {[%clk 0:03:00.6]}
5... Qc7 {[%clk 0:03:02.9]} 6. g3 {[%clk 0:03:00.9]} 6... Nc6 {[%clk 0:03:02.9]}
7. Bg2 {[%clk 0:03:01.5]} 7... d6 {[%clk 0:03:03.5]} 8. O-O {[%clk 0:02:58.9]}
8... Bd7 {[%clk 0:03:03.9]} 9. Nxc6 {[%clk 0:02:59.4]} 9... Bxc6 {[%clk
0:03:04.6]} 10. Re1 {[%clk 0:02:59.3]} 10... Be7 {[%clk 0:03:04.8]} 11. a4
{[%clk 0:02:58.6]} 11... Nf6 {[%clk 0:03:03.7]} 12. Be3 {[%clk 0:02:55.3]} 12...
O-O {[%clk 0:03:02.7]} 13. Qd3 {[%clk 0:02:42.4]} 13... Rac8 {[%clk 0:03:01.5]}
14. h3 {[%clk 0:02:40.6]} 14... Qb8 {[%clk 0:02:59.7]} 15. a5 {[%clk 0:02:38.9]}
15... Nd7 {[%clk 0:02:54.9]} 16. Na4 {[%clk 0:02:35]} 16... Bb5 {[%clk
0:02:52.9]} 17. Qd2 {[%clk 0:02:29.6]} 17... Qc7 {[%clk 0:02:46.3]} 18. Rec1
{[%clk 0:02:19.5]} 18... Bxa4 {[%clk 0:02:00]} 19. Rxa4 {[%clk 0:02:18.8]} 19...
e5 {[%clk 0:02:00.9]} 20. h4 {[%clk 0:02:10.8]} 20... Nc5 {[%clk 0:02:00.5]} 21.
Rc4 {[%clk 0:02:09.9]} 21... Qb8 {[%clk 0:01:50.1]} 22. Bh3 {[%clk 0:02:00.1]}
22... Ne6 {[%clk 0:01:45.9]} 23. Qd5 {[%clk 0:01:58.8]} 23... Rxc4 {[%clk
0:01:45]} 24. Qxc4 {[%clk 0:01:58.7]} 24... Qc8 {[%clk 0:01:43.9]} 25. Qd5
{[%clk 0:01:49.3]} 25... g6 {[%clk 0:01:25.1]} 26. c4 {[%clk 0:01:44.1]} 26...
Kg7 {[%clk 0:00:55.1]} 27. Kh2 {[%clk 0:01:40.1]} 27... f5 {[%clk 0:00:52.3]}
28. c5 {[%clk 0:01:27.9]} 28... Nc7 {[%clk 0:00:48.6]} 29. Qd2 {[%clk
0:01:15.7]} 29... dxc5 {[%clk 0:00:44.9]} 30. Bh6+ {[%clk 0:01:14.6]} 30... Kg8
{[%clk 0:00:42.1]} 31. Bxf8 {[%clk 0:01:14.9]} 31... Bxf8 {[%clk 0:00:42.4]} 32.
exf5 {[%clk 0:01:12.4]} 32... Nb5 {[%clk 0:00:37.9]} 33. fxg6 {[%clk 0:01:11.4]}
33... Qc6 {[%clk 0:00:38]} 34. gxh7+ {[%clk 0:01:11.7]} 34... Kh8 {[%clk
0:00:37.8]} 35. Qg5 {[%clk 0:01:04.3]} 35... Bg7 {[%clk 0:00:35.9]} 36. Qd8+
{[%clk 0:00:46.7]} 36... Kxh7 {[%clk 0:00:36.1]} 37. Bf5+ {[%clk 0:00:47.2]} 1-0

[Event "*** Titled Tuesday Blitz"]
[Site "Chess.com"]
[Date "2020.04.14"]
[Round "8"]
[White "pedromartinez91"]
[Black "WeAintSurePal"]
[Result "1/2-1/2"]
[WhiteElo "2506"]
[BlackElo "2325"]
[TimeControl "180+1"]
[EndTime "11:28:56 PDT"]
[Termination "Game drawn by agreement"]

1. e4 {[%clk 0:03:00.9]} 1... c5 {[%clk 0:02:50.4]} 2. b4 {[%clk 0:02:55.4]}
2... cxb4 {[%clk 0:02:50.1]} 3. a3 {[%clk 0:02:55.2]} 3... d5 {[%clk 0:02:49.9]}
4. exd5 {[%clk 0:02:53.3]} 4... Nf6 {[%clk 0:02:47.2]} 5. axb4 {[%clk 0:02:50]}
5... g6 {[%clk 0:02:47.4]} 6. c4 {[%clk 0:02:47.5]} 6... Bg7 {[%clk 0:02:47.1]}
7. Nc3 {[%clk 0:02:46]} 7... O-O {[%clk 0:02:47.5]} 8. Nf3 {[%clk 0:02:30.9]}
8... e6 {[%clk 0:02:47.1]} 9. d4 {[%clk 0:02:29.6]} 9... exd5 {[%clk 0:02:46.7]}
10. c5 {[%clk 0:02:30]} 10... Re8+ {[%clk 0:02:46.2]} 11. Be2 {[%clk 0:02:29.9]}
11... Ne4 {[%clk 0:02:46.4]} 12. Bb2 {[%clk 0:02:25.8]} 12... Nc6 {[%clk
0:02:40.5]} 13. O-O {[%clk 0:01:47.7]} 13... Nxb4 {[%clk 0:02:34]} 14. Nb5
{[%clk 0:01:43.8]} 14... Bg4 {[%clk 0:02:23.5]} 15. h3 {[%clk 0:01:25.7]} 15...
Bxf3 {[%clk 0:02:21.5]} 16. Bxf3 {[%clk 0:01:24.7]} 16... a6 {[%clk 0:02:21.6]}
17. Bxe4 {[%clk 0:01:20.6]} 17... axb5 {[%clk 0:02:12.6]} 18. Rxa8 {[%clk
0:01:15.7]} 18... Qxa8 {[%clk 0:02:13.5]} 19. Bf3 {[%clk 0:01:12.5]} 19... Qa2
{[%clk 0:02:09.8]} 20. Bc3 {[%clk 0:01:12.1]} 20... Qc4 {[%clk 0:02:07.9]} 21.
Bxb4 {[%clk 0:01:11.9]} 21... Qxb4 {[%clk 0:02:05.1]} 22. Bxd5 {[%clk 0:01:12]}
22... Qxd4 {[%clk 0:01:52.5]} 23. Qf3 {[%clk 0:01:09.3]} 23... Rf8 {[%clk
0:01:48]} 24. Re1 {[%clk 0:00:55.9]} 24... Qxc5 {[%clk 0:01:45.8]} 25. Re8
{[%clk 0:00:56.2]} 25... Rxe8 {[%clk 0:01:17.8]} 26. Qxf7+ {[%clk 0:00:55.5]}
26... Kh8 {[%clk 0:01:18.3]} 27. Qxe8+ {[%clk 0:00:55.8]} 27... Qf8 {[%clk
0:01:18.2]} 28. Qxb5 {[%clk 0:00:56.2]} 28... Bd4 {[%clk 0:01:14.4]} 29. Qe2
{[%clk 0:00:54.7]} 29... b5 {[%clk 0:01:10.2]} 30. Kf1 {[%clk 0:00:49.5]} 30...
b4 {[%clk 0:01:07.1]} 31. Bb3 {[%clk 0:00:41.7]} 31... Kg7 {[%clk 0:01:03.3]}
32. g3 {[%clk 0:00:40.6]} 32... Qf6 {[%clk 0:00:55.1]} 33. f4 {[%clk 0:00:39.7]}
33... Bc5 {[%clk 0:00:51.6]} 34. Qc4 {[%clk 0:00:39.1]} 34... Qa1+ {[%clk
0:00:50.7]} 35. Ke2 {[%clk 0:00:39.5]} 35... Qb2+ {[%clk 0:00:48.4]} 36. Kf3
{[%clk 0:00:39.9]} 36... Qc3+ {[%clk 0:00:47.8]} 37. Qxc3+ {[%clk 0:00:40]}
37... bxc3 {[%clk 0:00:48.7]} 38. g4 {[%clk 0:00:40.4]} 38... h5 {[%clk
0:00:45.1]} 39. f5 {[%clk 0:00:39.5]} 39... hxg4+ {[%clk 0:00:43.6]} 40. hxg4
{[%clk 0:00:40.4]} 40... gxf5 {[%clk 0:00:43.9]} 41. gxf5 {[%clk 0:00:41.3]}
41... Kf6 {[%clk 0:00:44.1]} 42. Bc2 {[%clk 0:00:42.2]} 42... Bd4 {[%clk
0:00:44]} 43. Ke4 {[%clk 0:00:41.9]} 43... Be5 {[%clk 0:00:42.9]} 1/2-1/2

[Event "*** Titled Tuesday Blitz"]
[Site "Chess.com"]
[Date "2020.04.14"]
[Round "8"]
[White "Durarbayli"]
[Black "saikrishnaReturns"]
[Result "0-1"]
[WhiteElo "2812"]
[BlackElo "2638"]
[TimeControl "180+1"]
[EndTime "11:28:57 PDT"]
[Termination "saikrishnaReturns won by resignation"]

1. e4 {[%clk 0:03:00.9]} 1... e5 {[%clk 0:02:59.8]} 2. Nf3 {[%clk 0:03:00.2]}
2... Nc6 {[%clk 0:03:00.4]} 3. Bb5 {[%clk 0:03:00.2]} 3... a6 {[%clk 0:03:00.3]}
4. Ba4 {[%clk 0:03:00.5]} 4... d6 {[%clk 0:03:01.2]} 5. c3 {[%clk 0:02:59.5]}
5... f5 {[%clk 0:03:00.9]} 6. d3 {[%clk 0:02:56.9]} 6... Nf6 {[%clk 0:03:00.4]}
7. Qe2 {[%clk 0:02:56.7]} 7... Be7 {[%clk 0:03:00]} 8. Bb3 {[%clk 0:02:52.9]}
8... Na5 {[%clk 0:02:57.1]} 9. Bc2 {[%clk 0:02:52.7]} 9... O-O {[%clk
0:02:56.5]} 10. Nbd2 {[%clk 0:02:49.2]} 10... c5 {[%clk 0:02:48.1]} 11. Nf1
{[%clk 0:02:42.9]} 11... Qe8 {[%clk 0:02:42.3]} 12. Bg5 {[%clk 0:02:38.8]} 12...
Qg6 {[%clk 0:02:34.7]} 13. Bxf6 {[%clk 0:02:23]} 13... Bxf6 {[%clk 0:02:32.5]}
14. Ne3 {[%clk 0:02:22.9]} 14... f4 {[%clk 0:02:27.1]} 15. Nd5 {[%clk
0:02:21.3]} 15... Qxg2 {[%clk 0:02:16.2]} 16. Rg1 {[%clk 0:02:18.6]} 16... Qh3
{[%clk 0:02:15.1]} 17. Ng5 {[%clk 0:02:09.9]} 17... Bxg5 {[%clk 0:01:52.4]} 18.
Rxg5 {[%clk 0:02:10.8]} 18... Be6 {[%clk 0:01:41.9]} 19. O-O-O {[%clk
0:01:42.3]} 19... Bxd5 {[%clk 0:01:39.9]} 20. exd5 {[%clk 0:01:43.2]} 20... b5
{[%clk 0:01:36.9]} 21. d4 {[%clk 0:01:38.2]} 21... f3 {[%clk 0:01:12.4]} 22. Qe4
{[%clk 0:01:35.2]} 22... Rf4 {[%clk 0:01:09.6]} 23. Qd3 {[%clk 0:01:25]} 23...
cxd4 {[%clk 0:01:05.6]} 24. Rdg1 {[%clk 0:01:20.2]} 24... Ra7 {[%clk 0:01:02.9]}
25. cxd4 {[%clk 0:00:58.5]} 25... Rxd4 {[%clk 0:01:01.2]} 26. Qc3 {[%clk
0:00:57.1]} 26... Nc4 {[%clk 0:00:59.3]} 27. b3 {[%clk 0:00:50]} 27... Rc7
{[%clk 0:00:56.8]} 28. Bf5 {[%clk 0:00:40.4]} 28... Qxh2 {[%clk 0:00:52.2]} 29.
Bc2 {[%clk 0:00:20.1]} 29... Qxf2 {[%clk 0:00:45.3]} 30. Rh1 {[%clk 0:00:17.2]}
30... Qe3+ {[%clk 0:00:43.1]} 31. Qxe3 {[%clk 0:00:14]} 31... Nxe3 {[%clk
0:00:44]} 0-1

[Event "*** Titled Tuesday Blitz"]
[Site "Chess.com"]
[Date "2020.04.14"]
[Round "8"]
[White "DejanNestor64"]
[Black "Faqade"]
[Result "0-1"]
[WhiteElo "2439"]
[BlackElo "2641"]
[TimeControl "180+1"]
[EndTime "11:28:58 PDT"]
[Termination "Faqade won by resignation"]

1. d4 {[%clk 0:02:59.1]} 1... Nf6 {[%clk 0:02:59.4]} 2. c4 {[%clk 0:02:58.2]}
2... g6 {[%clk 0:02:59.9]} 3. Nc3 {[%clk 0:02:57.6]} 3... Bg7 {[%clk 0:03:00.5]}
4. e4 {[%clk 0:02:57.5]} 4... O-O {[%clk 0:03:01]} 5. Be2 {[%clk 0:02:58]} 5...
d6 {[%clk 0:03:01]} 6. Bg5 {[%clk 0:02:58.4]} 6... c6 {[%clk 0:03:00.4]} 7. Qd2
{[%clk 0:02:57.3]} 7... d5 {[%clk 0:03:00.1]} 8. Bxf6 {[%clk 0:02:50.3]} 8...
exf6 {[%clk 0:02:59.9]} 9. exd5 {[%clk 0:02:50]} 9... cxd5 {[%clk 0:02:59.7]}
10. Nxd5 {[%clk 0:02:49.4]} 10... b5 {[%clk 0:03:00.2]} 11. Nf3 {[%clk
0:02:43.6]} 11... bxc4 {[%clk 0:02:57.8]} 12. Bxc4 {[%clk 0:02:39.9]} 12... Bb7
{[%clk 0:02:57.7]} 13. Ne3 {[%clk 0:02:39.2]} 13... f5 {[%clk 0:02:22.1]} 14.
O-O-O {[%clk 0:02:25.4]} 14... Nd7 {[%clk 0:02:08.6]} 15. Kb1 {[%clk 0:02:24.6]}
15... Nb6 {[%clk 0:02:04.1]} 16. Be2 {[%clk 0:02:11.7]} 16... Rb8 {[%clk
0:02:02.1]} 17. Nc4 {[%clk 0:01:52.4]} 17... Na4 {[%clk 0:01:42.4]} 18. Qc2
{[%clk 0:01:17.2]} 18... Be4 {[%clk 0:01:36.2]} 19. Bd3 {[%clk 0:01:16.2]} 19...
Bxf3 {[%clk 0:01:35.6]} 20. gxf3 {[%clk 0:01:13.2]} 20... Qxd4 {[%clk
0:00:39.6]} 21. Be2 {[%clk 0:01:08.3]} 21... Nc3+ {[%clk 0:00:24.6]} 22. Ka1
{[%clk 0:01:00.9]} 22... Nxd1 {[%clk 0:00:24.5]} 23. Rxd1 {[%clk 0:00:56.8]}
23... Qxf2 {[%clk 0:00:25]} 24. a3 {[%clk 0:00:49.2]} 24... Rfc8 {[%clk
0:00:25]} 25. Rb1 {[%clk 0:00:41.6]} 25... Qxh2 {[%clk 0:00:24.2]} 26. Ka2
{[%clk 0:00:41]} 26... Qc7 {[%clk 0:00:22.9]} 27. Bd3 {[%clk 0:00:40.1]} 27...
Qc5 {[%clk 0:00:22.5]} 28. Qe2 {[%clk 0:00:37.4]} 28... Qd4 {[%clk 0:00:22.2]}
29. Qc2 {[%clk 0:00:32.5]} 29... h5 {[%clk 0:00:22.1]} 0-1

[Event "*** Titled Tuesday Blitz"]
[Site "Chess.com"]
[Date "2020.04.14"]
[Round "8"]
[White "MPGM"]
[Black "TheoSlade"]
[Result "1-0"]
[WhiteElo "2453"]
[BlackElo "2272"]
[TimeControl "180+1"]
[EndTime "11:29:00 PDT"]
[Termination "MPGM won by resignation"]

1. e4 {[%clk 0:03:00.9]} 1... e5 {[%clk 0:03:00.2]} 2. Nf3 {[%clk 0:02:59.8]}
2... Nc6 {[%clk 0:03:00.6]} 3. Bc4 {[%clk 0:02:59.2]} 3... Bc5 {[%clk
0:03:00.3]} 4. c3 {[%clk 0:02:58.4]} 4... Nf6 {[%clk 0:03:00.6]} 5. d3 {[%clk
0:02:59]} 5... a6 {[%clk 0:02:59.9]} 6. O-O {[%clk 0:02:55]} 6... Ba7 {[%clk
0:03:00]} 7. a4 {[%clk 0:02:49.1]} 7... d6 {[%clk 0:02:47]} 8. a5 {[%clk
0:02:47.1]} 8... h6 {[%clk 0:02:42.5]} 9. Qb3 {[%clk 0:02:41.6]} 9... O-O {[%clk
0:02:41]} 10. Be3 {[%clk 0:02:39.9]} 10... Bxe3 {[%clk 0:02:39.9]} 11. fxe3
{[%clk 0:02:40.8]} 11... Ne7 {[%clk 0:02:39.6]} 12. Nbd2 {[%clk 0:02:37.4]}
12... c6 {[%clk 0:02:39.2]} 13. Qc2 {[%clk 0:02:28.6]} 13... Ng6 {[%clk
0:02:34.3]} 14. d4 {[%clk 0:02:18.9]} 14... Re8 {[%clk 0:02:30]} 15. b4 {[%clk
0:02:15.6]} 15... Be6 {[%clk 0:02:19.2]} 16. Bd3 {[%clk 0:02:02.2]} 16... Qc7
{[%clk 0:02:13.6]} 17. Kh1 {[%clk 0:01:54.7]} 17... c5 {[%clk 0:01:48.6]} 18. d5
{[%clk 0:01:43.6]} 18... Bd7 {[%clk 0:01:43.7]} 19. Nc4 {[%clk 0:01:41]} 19...
cxb4 {[%clk 0:01:31.6]} 20. cxb4 {[%clk 0:01:40.3]} 20... Bb5 {[%clk 0:01:29.5]}
21. Nfd2 {[%clk 0:01:12.8]} 21... Rac8 {[%clk 0:01:27]} 22. Rac1 {[%clk
0:01:09.3]} 22... Nd7 {[%clk 0:01:18.6]} 23. Qd1 {[%clk 0:00:46.5]} 23... b6
{[%clk 0:01:12.8]} 24. Nxb6 {[%clk 0:00:36.1]} 24... Qxc1 {[%clk 0:01:09.5]} 25.
Qxc1 {[%clk 0:00:37]} 25... Rxc1 {[%clk 0:01:09.9]} 26. Rxc1 {[%clk 0:00:37.7]}
26... Nxb6 {[%clk 0:01:06.8]} 27. Bxb5 {[%clk 0:00:37.5]} 27... axb5 {[%clk
0:01:01.8]} 28. axb6 {[%clk 0:00:37.7]} 28... Rb8 {[%clk 0:00:48.1]} 29. Rc6
{[%clk 0:00:35.3]} 29... Ne7 {[%clk 0:00:46.2]} 30. Rxd6 {[%clk 0:00:35.4]}
30... Kf8 {[%clk 0:00:43.5]} 31. b7 {[%clk 0:00:29.5]} 31... Ke8 {[%clk
0:00:42.9]} 32. Rb6 {[%clk 0:00:29.5]} 32... Kd7 {[%clk 0:00:41.1]} 33. Rxb5
{[%clk 0:00:29.8]} 33... Kc7 {[%clk 0:00:36]} 34. Kg1 {[%clk 0:00:27.3]} 34...
Rxb7 {[%clk 0:00:36.3]} 35. d6+ {[%clk 0:00:27.6]} 35... Kxd6 {[%clk 0:00:34.5]}
36. Rxb7 {[%clk 0:00:28.5]} 1-0